[Event "Israeli Team U18-ch 2022"]
[Site "Be'er Ya'akov"]
[Date "2022.08.14"]
[Round "1.16"]
[White "Goz, Shachar"]
[Black "Ostrovsky Berman, Noam"]
[Result "1-0"]
[ECO "A02"]
[WhiteElo "1380"]
[BlackElo "1778"]
[Annotator "NA RC"]
[PlyCount "93"]
[EventDate "2022.08.14"]
[EventCountry "ISR"]
[SourceTitle "playchess.com"]
[Source "ChessBase"]
[SourceQuality "1"]
[TimeControl "3000+10"]

1. f4 {[%emt 0:00:02]} c5 {[%emt 0:01:22]} 2. Nf3 {[%emt 0:00:06]} g6 {[%emt 0:00:27]} 3. e3 {[%emt 0:00:09]} Bg7 {[%emt 0:00:05]} 4. Nc3 {[%emt 0:01:08]} e6 {[%emt 0:02:39]} 5. Bb5 {[%emt 0:00:33]} a6 {[%emt 0:00:41]} 6. Be2 {[%emt 0:00:05]} b5 {[%emt 0:02:23]} 7. d4 {[%emt 0:01:01]} c4 {[%emt 0:03:42]} 8. a4 {[%emt 0:01:54]} b4 {[%emt 0:13:35]} 9. Na2 {[%emt 0:01:27]} a5 {[%emt 0:00:26]} 10. Bxc4 {[%emt 0:00:06]} d5 {[%emt 0:00:02]} 11. Bd3 {[%emt 0:00:30]} Ne7 {[%emt 0:05:04]} 12. b3 {[%emt 0:01:06]} Nbc6 {[%emt 0:02:08]} 13. O-O {[%emt 0:00:52]} h5 {[%emt 0:00:37]} 14. Bb2 {[%emt 0:00:40]} Nf5 {[%emt 0:03:17]} 15. Qd2 {[%emt 0:01:00]} Qb6 {[%emt 0:02:07]} 16. Nc1 {[%emt 0:02:08]} f6 {[%emt 0:02:56]} 17. Bb5 {[%emt 0:05:12]} Nd6 {[%emt 0:02:50]} 18. Bd3 {[%emt 0:03:34]} Kf7 {[%emt 0:00:59]} 19. Ne5+ {[%emt 0:02:48]} fxe5 {[%emt 0:02:15]} 20. fxe5+ {[%emt 0:00:01]} Nf5 {[%emt 0:00:22]} 21. Ne2 {[%emt 0:01:37]} Ke7 {[%emt 0:00:36]} 22. Nf4 {[%emt 0:00:13]} Rh6 {[%emt 0:01:56]} 23. Qf2 {[%emt 0:02:52]} Ba6 {[%emt 0:01:01]} 24. c4 {[%emt 0:06:18]} bxc3 {[%emt 0:00:39]} 25. Ba3+ {[%emt 0:00:05]} Nb4 {[%emt 0:00:48]} 26. Bxf5 {[%emt 0:00:13]} gxf5 {[%emt 0:00:36]} 27. Qh4+ {[%emt 0:00:44]} Kd7 {[%emt 0:00:06]} 28. Qg5 {[%emt 0:00:31]} Rg8 {[%emt 0:00:08]} 29. Nxh5 {[%emt 0:01:06]} Qd8 {[%emt 0:00:53]} 30. Rxf5 {[%emt 0:02:32]} exf5 {[%emt 0:00:05]} 31. Qxf5+ {[%emt 0:00:01]} Kc7 {[%emt 0:00:23]} 32. Bxb4 {[%emt 0:00:11]} axb4 {[%emt 0:00:01]} 33. Qf7+ {[%emt 0:14:55]} Kb8 {[%emt 0:00:03]} 34. Nxg7 {[%emt 0:00:00]} Qg5 {[%emt 0:00:25]} 35. Qxg8+ {[%emt 0:00:00]} Ka7 {[%emt 0:00:02]} 36. Qf7+ {[%emt 0:00:00]} Bb7 {[%emt 0:00:01]} 37. Nf5 {[%emt 0:00:00]} Rb6 {[%emt 0:00:20]} 38. a5 {[%emt 0:00:00]} Rg6 {[%emt 0:00:11]} 39. g3 {[%emt 0:00:00]} c2 {[%emt 0:00:15]} 40. Rc1 {[%emt 0:00:00]} Rc6 {[%emt 0:00:07]} 41. Kf2 {[%emt 0:00:00]} Qg4 {[%emt 0:00:13]} 42. Ke1 {[%emt 0:00:00]} Qf3 {[%emt 0:00:09]} 43. a6 {[%emt 0:00:00]} Qh1+ {[%emt 0:00:04]} 44. Kf2 {[%emt 0:00:57]} Qxh2+ {[%emt 0:00:01]} 45. Kf3 {[%emt 0:00:04]} Kxa6 {[%emt 0:00:12]} 46. Nd6 {[%emt 0:00:03]} Rxd6 {[%emt 0:00:24]} 47. exd6 {[%emt 0:00:01]} 1-0

[Event "Israeli Team U18-ch 2022"]
[Site "Be'er Ya'akov"]
[Date "2022.08.14"]
[Round "2.1"]
[White "Rozen, Eytan"]
[Black "Gov, Guy"]
[Result "1-0"]
[ECO "A13"]
[WhiteElo "2465"]
[BlackElo "2174"]
[Annotator "TA"]
[PlyCount "81"]
[EventDate "2022.08.14"]
[EventCountry "ISR"]
[SourceTitle "playchess.com"]
[Source "ChessBase"]
[SourceQuality "1"]
[TimeControl "3000+10"]

{[%evp 14,81,38,3,22,26,60,44,71,62,62,69,64,65,65,64,150,129,145,138,127,137,127,104,100,87,77,16,20,20,17,25,21,20,21,25,26,19,156,159,309,310,310,309,309,318,330,325,315,318,365,368,366,369,380,377,372,339,439,441,510,498,541,532,538,480,527,486,401,360]} 1. c4 {[%emt 0:00:40]} e6 {[%emt 0:00:06]} 2. g3 {[%emt 0:01:00]} d5 {[%emt 0:00:16]} 3. Bg2 {[%emt 0:00:05]} Nf6 {[%emt 0:00:10]} 4. Nf3 {[%emt 0:00:06]} dxc4 {[%emt 0:00:06]} 5. Qa4+ {[%emt 0:00:38]} Nbd7 {[%emt 0:00:18]} 6. Qxc4 {[%emt 0:00:01]} a6 {[%emt 0:00:06]} 7. Qc2 {[%emt 0:00:38]} c5 {[%emt 0:00:06]} 8. O-O {[%emt 0:00:12] 8.Nc3 injects fresh life into this line.} Qc7 {[%emt 0:01:39] A13: English Opening: 1...e6.} 9. d4 {[%emt 0:01:56]} b6 {[%emt 0:03:51]} 10. Bf4 {[%emt 0:01:42]} Bd6 {[%emt 0:00:01] [#] White is slightly better.} 11. Ne5 $146 {[%emt 0:08:15]} ({Predecessor:} 11. Bxd6 Qxd6 12. Rd1 Bb7 13. Nc3 O-O 14. Rd2 Rac8 15. dxc5 Qxc5 16. Rad1 Ne5 17. Nxe5 Bxg2 {1-0 (27) Sorokin,A (2532)-Dobrowolski,P (2413) Chess.com INT 2021}) 11... Nd5 {[%emt 0:04:30][%cal Rd7e5]} 12. Nxd7 {[%emt 0:02:08] White is more active.} Bxd7 {[%emt 0:01:43]} 13. Bxd6 {[%emt 0:02:10]} Qxd6 {[%emt 0:00:01]} 14. dxc5 {[%emt 0:03:23]} bxc5 {[%emt 0:22:03]} (14... Qxc5 $14 15. Qxc5 bxc5) 15. Nc3 {[%emt 0:05:52]} Nb4 {[%emt 0:01:38]} 16. Rad1 {[%emt 0:01:59][%cal Ba1d1,Bd1d6,Bd6d2][%mdl 32]} Nxc2 {[%emt 0:02:16]} 17. Rxd6 {[%emt 0:00:04]} Ra7 {[%emt 0:00:26]} 18. e3 {[%emt 0:02:59] Threatens to win with a3.} Ke7 {[%emt 0:03:15]} 19. Rd2 {[%emt 0:06:04]} Nb4 {[%emt 0:00:23]} 20. a3 {[%emt 0:00:45]} ({White should play} 20. Rc1 $16) 20... Nc6 $1 $11 {[%emt 0:00:07]} 21. Ne4 $36 {[%emt 0:05:02][%mdl 2048] White has the initiative.} c4 $1 {[%emt 0:01:07]} 22. Nc5 {[%emt 0:01:30]} Rb8 {[%emt 0:00:35]} 23. Rxd7+ {[%emt 0:03:09]} Rxd7 {[%emt 0:00:03]} 24. Bxc6 {[%emt 0:00:58]} Rd2 {[%emt 0:01:21]} 25. Na4 {[%emt 0:00:42] [#] Black must now prevent Rc1.} Kd6 {[%emt 0:00:41] Black is now going downhill.} (25... c3 $1 $11 26. bxc3 Rc8) 26. Bf3 $16 {[%emt 0:00:34]} Ke7 {[%emt 0:04:41]} (26... c3 $16 {was called for.}) 27. Rc1 $18 {[%emt 0:00:41]} Rc8 {[%emt 0:00:58]} 28. Bb7 {[%emt 0:00:23][%csl LRa6,LRc8]} (28. Nb6 $6 Rc7 29. Rxc4 Kd8 30. Rxc7 Kxc7 $18) 28... Rc7 {[%emt 0:00:26]} 29. Bxa6 {[%emt 0:00:10]} Ra7 {[%emt 0:00:12]} 30. Bb5 {[%emt 0:00:17]} Ra5 {[%emt 0:00:07]} 31. Bc6 {[%emt 0:00:10]} Rf5 {[%emt 0:00:45]} 32. f4 {[%emt 0:00:19]} ({Less strong is} 32. Rxc4 Rfxf2 33. b4 Rxh2 $14) 32... Rh5 {[%emt 0:00:39]} 33. Bg2 {[%emt 0:00:19]} ({Not} 33. Rxc4 Rhxh2 34. Rd4 Rxd4 35. Kxh2 (35. exd4 Rc2 $16) 35... Rd3 $16) 33... e5 {[%emt 0:00:10]} 34. Rxc4 {[%emt 0:00:26]} exf4 {[%emt 0:00:01]} 35. Rxf4 {[%emt 0:00:15]} Rb5 {[%emt 0:00:14]} 36. b4 {[%emt 0:00:18][%cal Bb2b4,Bb4b5][%mdl 32]} Rb8 {[%emt 0:00:08]} 37. Nc5 {[%emt 0:00:10]} Rbd8 {[%emt 0:00:18]} 38. Re4+ {[%emt 0:00:07]} Kf8 {[%emt 0:00:03]} 39. Rd4 {[%emt 0:00:00] [#] aiming for b5.} R8xd4 {[%emt 0:00:01]} 40. exd4 {[%emt 0:00:01]} Rxd4 {[%emt 0:00:01]} 41. b5 {[%emt 0:00:05] Weighted Error Value: White=0.10 (very precise) /Black=0.28 (precise)} 1-0

[Event "Israeli Team U18-ch 2022"]
[Site "Be'er Ya'akov"]
[Date "2022.08.14"]
[Round "2.2"]
[White "Tsirilman, Guy"]
[Black "Milikow, Yoav"]
[Result "1/2-1/2"]
[ECO "C42"]
[WhiteElo "2108"]
[BlackElo "2452"]
[Annotator "TA"]
[PlyCount "91"]
[EventDate "2022.08.14"]
[EventCountry "ISR"]
[SourceTitle "playchess.com"]
[Source "ChessBase"]
[SourceQuality "1"]
[TimeControl "3000+10"]

{[%evp 14,91,6,14,5,7,0,0,16,-17,-10,-26,-27,-32,-33,-41,-31,-56,-45,-68,-43,-69,-62,-83,-68,-110,-113,-118,-95,-129,-119,-126,-117,-118,-114,-126,-119,-179,-170,-208,-140,-140,-133,-148,-121,-140,-113,-120,-119,-129,-133,-134,-93,-125,-119,-150,-116,-117,-117,-133,59,-185,-202,-197,-194,-205,-202,-200,-133,-134,-5,-8,0,-10,0,0,0,0,0,0]} 1. e4 {[%emt 0:00:28]} e5 {[%emt 0:00:05]} 2. Nf3 {[%emt 0:00:03]} Nf6 {[%emt 0:00:05]} 3. Nxe5 {[%emt 0:00:19]} d6 {[%emt 0:00:03]} 4. Nf3 {[%emt 0:00:10]} Nxe4 {[%emt 0:00:06]} 5. Nc3 {[%emt 0:00:04]} Nxc3 {[%emt 0:00:05]} 6. dxc3 {[%emt 0:00:04]} Be7 {[%emt 0:00:07]} 7. Bf4 {[%emt 0:00:16]} O-O $1 {[%emt 0:00:07] 7...0-0 scores better than 7...Nc6.} 8. Qd2 {[%emt 0:00:08]} Re8 {[%emt 0:03:24] C42: Petroff Defence: 3 Nxe5 and unusual White 3rd moves.} 9. O-O-O {[%emt 0:00:33]} Nd7 {[%emt 0:00:27][%cal Bb8d7,Bd7c5,Bc5d3][%mdl 32]} 10. Kb1 {[%emt 0:01:42]} Nc5 {[%emt 0:00:33]} 11. Bd3 {[%emt 0:03:29] [#] Prevents Ne4.} Bg4 $146 {[%emt 0:02:45]} ({Predecessor:} 11... Ne6 12. Be3 Bf6 13. h3 Nf8 14. Nd4 a6 15. g4 c5 16. Nf5 Bxf5 17. Bxf5 Be7 {1-0 (28) Huhnstock,R (1856)-Lohrie,C (1440) Neumuenster 2008}) 12. Rhe1 {[%emt 0:04:59]} Qd7 {[%emt 0:01:31]} 13. Re3 {[%emt 0:05:52]} Bf6 {[%emt 0:01:10]} 14. Rde1 {[%emt 0:03:23]} Rxe3 {[%emt 0:02:03]} 15. Qxe3 {[%emt 0:01:00]} Nxd3 {[%emt 0:01:10]} 16. cxd3 {[%emt 0:04:27]} h6 {[%emt 0:02:59]} 17. Nd2 {[%emt 0:04:33]} Be6 {[%emt 0:05:44]} 18. Ne4 {[%emt 0:05:34]} Be7 {[%emt 0:00:31]} 19. Qe2 {[%emt 0:03:42]} Re8 {[%emt 0:01:44]} 20. f3 {[%emt 0:01:30]} Bf8 {[%emt 0:02:45] [#] Hoping for ...f5.} 21. Qd2 {[%emt 0:03:02]} f5 {[%emt 0:01:31]} 22. Nf2 {[%emt 0:01:44]} g5 {[%emt 0:01:59]} 23. Be3 {[%emt 0:00:17]} Qf7 {[%emt 0:01:06]} 24. c4 {[%emt 0:01:44]} b5 {[%emt 0:01:00][%cal Bb7b5,Bb5c4][%mdl 32]} 25. Nd1 {[%emt 0:00:24]} (25. b3 $17 {is a better defense.}) 25... bxc4 $19 {[%emt 0:00:12]} 26. d4 {[%emt 0:00:07]} d5 {[%emt 0:02:50]} 27. f4 {[%emt 0:00:48]} g4 {[%emt 0:00:30]} 28. Bf2 {[%emt 0:01:36]} c6 {[%emt 0:00:18]} 29. Re2 {[%emt 0:02:23]} Rb8 {[%emt 0:00:58]} 30. Qe3 {[%emt 0:00:25]} Bd7 {[%emt 0:00:12]} 31. g3 {[%emt 0:00:21]} Qh5 {[%emt 0:01:35]} 32. Be1 {[%emt 0:00:06]} Bg7 {[%emt 0:02:45]} 33. Bc3 {[%emt 0:00:02]} Re8 {[%emt 0:00:38]} 34. Qf2 {[%emt 0:00:05]} Re4 {[%emt 0:00:23]} 35. Rxe4 {[%emt 0:00:06]} fxe4 {[%emt 0:00:07]} ({Don't play} 35... dxe4 $6 36. d5 cxd5 37. Bxg7 Kxg7 38. Qd4+ Kf8 39. Qc5+ Kg8 40. Qxd5+ Qf7 41. Qa8+ Be8 42. Ne3 $11) 36. Ne3 {[%emt 0:00:01]} c5 $2 {[%emt 0:00:48]} (36... Qe8 $17 37. Qd2 Qb8) 37. Nc2 $2 {[%emt 0:00:02] [#]} (37. Qd2 $14 {was forced to keep a grip.}) 37... e3 $1 {[%emt 0:00:17]} (37... cxd4 38. Bxd4 Bxd4 39. Qxd4 $11) 38. Qxe3 {[%emt 0:00:15]} Qxh2 {[%emt 0:00:15] And now ...Bf5 would win.} ({And not} 38... Bf5 39. Kc1 $15) 39. dxc5 {[%emt 0:00:34]} Bf5 {[%emt 0:01:43]} 40. Qd2 {[%emt 0:00:05]} Qg1+ {[%emt 0:01:53]} 41. Qe1 {[%emt 0:00:08]} Qg2 {[%emt 0:00:11]} ({Much worse is} 41... Qxc5 $6 42. Bxg7 Kxg7 43. Qe5+ Kg6 44. Qe8+ Kh7 45. Qf7+ Kh8 46. Qe8+ Kh7 47. Qf7+ Kh8 48. Qe8+ Kh7 $11) ({Black should play} 41... Qxe1+ $17 42. Bxe1 Bd4) 42. Bxg7 {[%emt 0:00:27] The position is equal.} Qxc2+ {[%emt 0:01:36]} 43. Ka1 {[%emt 0:00:02]} Kxg7 {[%emt 0:00:30]} 44. Qe7+ {[%emt 0:00:03]} Kg6 {[%emt 0:00:10][%csl Gf5][%cal Rc2b1]} 45. Qe8+ $1 {[%emt 0:00:06]} Kf6 {[%emt 0:00:08][%csl Gf5][%cal Rc2b1]} 46. Qf8+ {[%emt 0:00:07] Weighted Error Value: White=0.23 (precise) /Black=0.23 (precise)} 1/2-1/2

[Event "Israeli Team U18-ch 2022"]
[Site "Be'er Ya'akov"]
[Date "2022.08.14"]
[Round "2.3"]
[White "Milikow, Elie"]
[Black "Orian, Noga"]
[Result "1-0"]
[ECO "B90"]
[WhiteElo "2433"]
[BlackElo "1914"]
[Annotator "TA"]
[PlyCount "61"]
[EventDate "2022.08.14"]
[EventCountry "ISR"]
[SourceTitle "playchess.com"]
[Source "ChessBase"]
[SourceQuality "1"]
[TimeControl "3000+10"]

{[%evp 24,61,0,-14,35,30,31,36,75,70,112,115,169,169,214,210,217,189,197,198,160,80,79,49,133,118,206,206,210,191,444,376,369,368,364,373,540,535,500,413]} 1. e4 {[%emt 0:00:04]} c5 {[%emt 0:00:05]} 2. Nf3 {[%emt 0:00:04]} d6 {[%emt 0:00:03]} 3. d4 {[%emt 0:00:12]} cxd4 {[%emt 0:00:04]} 4. Nxd4 {[%emt 0:00:08]} Nf6 {[%emt 0:00:07]} 5. Nc3 {[%emt 0:00:18]} a6 {[%emt 0:00:05]} 6. f3 {[%emt 0:00:27]} e5 {[%emt 0:00:08]} 7. Nb3 {[%emt 0:00:08]} Be6 {[%emt 0:00:05]} 8. Be3 {[%emt 0:00:19]} Be7 {[%emt 0:00:07]} 9. Qd2 {[%emt 0:01:52]} Nbd7 {[%emt 0:00:11]} 10. Nd5 {[%emt 0:00:39]} Bxd5 {[%emt 0:01:39]} 11. exd5 {[%emt 0:00:13]} O-O {[%emt 0:00:51]} 12. Be2 {[%emt 0:01:48]} Rc8 {[%emt 0:04:33]} 13. c4 {[%emt 0:02:13] [#]} g6 $146 {[%emt 0:06:10] B90: Sicilian Najdorf: Unusual White 6th moves, 6 Be3 Ng4 and 6 Be3 e5.} (13... Nh5 $11) ({Predecessor:} 13... b6 14. O-O a5 15. Rac1 Re8 16. Rc2 g6 17. Nc1 Nh5 18. Nd3 f5 19. Kh1 f4 20. Bg1 Bh4 21. Nf2 {0-1 (49) Franca,R (2278)-So,W (2773) Chess.com INT 2022}) 14. Na5 $14 {[%emt 0:02:46]} Qc7 {[%emt 0:00:37]} 15. O-O {[%emt 0:00:34]} Rfe8 {[%emt 0:02:01] White is slightly better.} 16. b4 {[%emt 0:01:55]} b6 {[%emt 0:02:19]} 17. Nc6 {[%emt 0:00:35]} Bf8 {[%emt 0:00:12] [#]} (17... Ra8 $16 {was worth a try.} 18. a4 a5) 18. a4 $1 $18 {[%emt 0:00:46][%cal Ba2a4,Ba4a5][%mdl 32]} Nb8 {[%emt 0:03:42] [#]} 19. a5 $1 {[%emt 0:00:30]} bxa5 {[%emt 0:02:22]} 20. b5 {[%emt 0:06:57]} (20. Rxa5 Nxc6 21. dxc6 Qxc6 $16) 20... axb5 {[%emt 0:07:02]} 21. cxb5 {[%emt 0:02:38] And now b6 would win.} Nxc6 {[%emt 0:04:47]} 22. bxc6 {[%emt 0:05:52]} (22. dxc6 $142 {aiming for Rfc1.} d5 23. Qxa5) 22... Ra8 $16 {[%emt 0:01:13]} 23. Rfb1 {[%emt 0:01:13] 0x0.001f24df9e11dp-1022s more active pieces.} a4 {[%emt 0:02:45]} (23... Reb8 $1 $14) 24. Rb7 {[%emt 0:00:45]} Qa5 {[%emt 0:01:06]} (24... Qc8 $16) 25. Qxa5 {[%emt 0:04:29]} Rxa5 {[%emt 0:00:02]} 26. Bc4 {[%emt 0:01:37]} Nxd5 $2 {[%emt 0:03:00]} (26... Rc8 27. Bb6 Raa8) 27. Bb6 {[%emt 0:00:35]} Nxb6 {[%emt 0:03:29]} 28. Bxf7+ {[%emt 0:00:08]} Kh8 {[%emt 0:00:06][%cal Oe8e7] ...Re7! is the strong threat.} 29. Bxe8 {[%emt 0:00:10]} Nd5 {[%emt 0:00:47]} (29... Na8 $142 30. Bd7 a3) 30. Bf7 $18 {[%emt 0:01:18] Black must now prevent Bxd5.} ({Less strong is} 30. c7 Rc5 31. Rb5 (31. Bxa4 Rxc7 32. Rxc7 Nxc7 $18) 31... Nxc7 32. Rxc5 dxc5 $18) 30... Ne7 {[%emt 0:01:25]} 31. Rc1 {[%emt 0:00:48] Weighted Error Value: White=0.15 (very precise) /Black=0.55} 1-0

[Event "Israeli Team U18-ch 2022"]
[Site "Be'er Ya'akov"]
[Date "2022.08.14"]
[Round "2.4"]
[White "Zuev, Ilya"]
[Black "Gorshtein, Asaf"]
[Result "0-1"]
[ECO "A32"]
[WhiteElo "1789"]
[BlackElo "2112"]
[Annotator "RC"]
[PlyCount "122"]
[EventDate "2022.08.14"]
[EventCountry "ISR"]
[SourceTitle "playchess.com"]
[Source "ChessBase"]
[SourceQuality "1"]
[TimeControl "3000+10"]

1. d4 {[%emt 0:00:03]} Nf6 {[%emt 0:00:05]} 2. Nf3 {[%emt 0:00:25]} d5 {[%emt 0:00:07]} 3. c4 {[%emt 0:00:23]} e6 {[%emt 0:00:22]} 4. Nc3 {[%emt 0:00:48]} c5 {[%emt 0:00:26]} 5. cxd5 {[%emt 0:00:26]} cxd4 {[%emt 0:00:08]} 6. Nxd4 {[%emt 0:01:10]} Nxd5 {[%emt 0:01:15]} 7. Nxd5 {[%emt 0:01:28]} Qxd5 {[%emt 0:01:24]} 8. e3 {[%emt 0:00:56]} Nc6 {[%emt 0:07:59]} 9. Nb5 {[%emt 0:06:15]} Bb4+ {[%emt 0:02:14]} 10. Bd2 {[%emt 0:00:42]} Bxd2+ {[%emt 0:00:25]} 11. Qxd2 {[%emt 0:00:12]} Qxd2+ {[%emt 0:00:06]} 12. Kxd2 {[%emt 0:00:09]} Ke7 {[%emt 0:00:15]} 13. Bd3 {[%emt 0:02:35]} Rd8 {[%emt 0:02:03]} 14. Ke2 {[%emt 0:00:49]} Bd7 {[%emt 0:03:19]} 15. Rhd1 {[%emt 0:05:41]} Ne5 {[%emt 0:00:48]} 16. Nc3 {[%emt 0:00:50]} Nxd3 {[%emt 0:00:14]} 17. Rxd3 {[%emt 0:00:24]} Bc6 {[%emt 0:00:11]} 18. Rxd8 {[%emt 0:01:05]} Rxd8 {[%emt 0:03:11]} 19. b4 {[%emt 0:05:12]} g5 {[%emt 0:04:54]} 20. f3 {[%emt 0:00:55]} h5 {[%emt 0:00:46]} 21. Rd1 {[%emt 0:03:04]} Rc8 {[%emt 0:00:31]} 22. Rd3 {[%emt 0:01:17]} f6 {[%emt 0:00:43]} 23. Kf2 {[%emt 0:07:21]} Be8 {[%emt 0:00:25]} 24. Ne4 {[%emt 0:04:29]} Rc2+ {[%emt 0:03:22]} 25. Rd2 {[%emt 0:00:06]} Rc1 {[%emt 0:00:16]} 26. Nd6 {[%emt 0:02:06]} b6 {[%emt 0:00:53]} 27. f4 {[%emt 0:02:49]} gxf4 {[%emt 0:02:20]} 28. exf4 {[%emt 0:00:51]} Bd7 {[%emt 0:00:37]} 29. Ke2 {[%emt 0:02:18]} Rb1 {[%emt 0:01:47]} 30. a3 {[%emt 0:00:09]} Rb3 {[%emt 0:00:15]} 31. Kf2 {[%emt 0:00:11]} Rxa3 {[%emt 0:00:35]} 32. Ne4 {[%emt 0:00:09]} Bc6 {[%emt 0:00:12]} 33. Nd6 {[%emt 0:00:09]} Ra4 {[%emt 0:01:13]} 34. b5 {[%emt 0:00:11]} Bd7 {[%emt 0:00:26]} 35. Ke3 {[%emt 0:00:10]} Rb4 {[%emt 0:00:23]} 36. g3 {[%emt 0:00:11]} e5 {[%emt 0:01:17]} 37. fxe5 {[%emt 0:00:09]} fxe5 {[%emt 0:00:03]} 38. h4 {[%emt 0:00:11]} Rd4 {[%emt 0:00:42]} 39. Ne4 {[%emt 0:00:09]} Rxd2 {[%emt 0:00:08]} 40. Kxd2 {[%emt 0:00:10]} Bxb5 {[%emt 0:00:06]} 41. Kc3 {[%emt 0:00:10]} Bc6 {[%emt 0:00:09]} 42. Nf2 {[%emt 0:00:11]} Bf3 {[%emt 0:01:11]} 43. Kc4 {[%emt 0:00:09]} Kd6 {[%emt 0:00:10]} 44. Kd3 {[%emt 0:00:10]} a5 {[%emt 0:00:12]} 45. Ke3 {[%emt 0:00:10]} Bd5 {[%emt 0:00:21]} 46. g4 {[%emt 0:00:04]} hxg4 {[%emt 0:00:04]} 47. Nxg4 {[%emt 0:00:10]} a4 {[%emt 0:00:17]} 48. Kd3 {[%emt 0:00:10]} a3 {[%emt 0:00:23]} 49. Kc3 {[%emt 0:00:07]} Bf7 {[%emt 0:01:24]} 50. Ne3 {[%emt 0:00:19]} Kc5 {[%emt 0:00:30]} 51. Ng4 {[%emt 0:00:11]} e4 {[%emt 0:00:55]} 52. Nf6 {[%emt 0:00:09]} e3 {[%emt 0:00:30]} 53. Ne4+ {[%emt 0:00:10]} Kd5 {[%emt 0:00:23]} 54. Ng3 {[%emt 0:00:11]} a2 {[%emt 0:00:15]} 55. Kb2 {[%emt 0:00:02]} Ke5 {[%emt 0:00:20]} 56. h5 {[%emt 0:00:16]} Bxh5 {[%emt 0:00:21]} 57. Kxa2 {[%emt 0:00:11]} e2 {[%emt 0:00:11]} 58. Nxe2 {[%emt 0:00:11]} Bxe2 {[%emt 0:00:05]} 59. Kb3 {[%emt 0:00:03]} Kd4 {[%emt 0:00:10]} 60. Kb4 {[%emt 0:00:10]} b5 {[%emt 0:00:05]} 61. Ka5 {[%emt 0:00:14]} Kc3 {[%emt 0:00:08]} 0-1

[Event "Israeli Team U18-ch 2022"]
[Site "Be'er Ya'akov"]
[Date "2022.08.14"]
[Round "2.5"]
[White "Ribstein, Orel"]
[Black "Levin, Guy"]
[Result "0-1"]
[ECO "D25"]
[WhiteElo "1964"]
[BlackElo "2363"]
[Annotator "TA"]
[PlyCount "46"]
[EventDate "2022.08.14"]
[EventCountry "ISR"]
[SourceTitle "playchess.com"]
[Source "ChessBase"]
[SourceQuality "1"]
[TimeControl "3000+10"]

{[%evp 13,46,45,48,0,0,-25,0,2,7,0,-6,-12,-12,-16,-17,-59,-54,-214,-224,-210,-215,-202,-206,-210,-236,-425,-430,-726,-691,-839,-830,-1753,-1753,-29997,-266]} 1. d4 {[%emt 0:00:01] Harikrishna,P} d5 {[%emt 0:00:04]} 2. c4 {[%emt 0:00:09]} dxc4 {[%emt 0:00:17]} 3. Nf3 {[%emt 0:00:09]} Nf6 {[%emt 0:00:03]} 4. e3 {[%emt 0:00:05]} Bg4 {[%emt 0:00:04]} 5. Bxc4 {[%emt 0:00:07]} e6 {[%emt 0:00:03]} 6. O-O {[%emt 0:00:28]} Nbd7 {[%emt 0:00:11]} 7. Nc3 {[%emt 0:02:31]} Be7 {[%emt 0:00:06] [#]} 8. Bd2 $146 {[%emt 0:01:40] D25: Queen's Gambit Accepted: 4 e3: sidelines and 4...Bg4.} (8. h3 $14 {feels stronger.} Bh5 9. e4) ({Predecessor:} 8. e4 O-O 9. e5 Ne8 10. Be3 c6 11. h3 Bh5 12. g4 Bg6 13. Ne1 Nb6 14. Bb3 Nc7 15. f4 f5 {0-1 (49) Navara,D (2717)-Harikrishna,P (2713) Prague 2020 CBM 195 [Harikrishna,P]}) 8... O-O $11 {[%emt 0:05:30]} 9. Qc2 {[%emt 0:03:38]} Bxf3 {[%emt 0:03:12]} 10. gxf3 {[%emt 0:00:12] The position is equal.} Rc8 {[%emt 0:10:38][%cal Ba8c8,Bc8c5,Bc5h5,Bh5h6,Bh6g6][%mdl 32]} 11. Rfd1 {[%emt 0:01:00]} c5 {[%emt 0:00:17]} 12. dxc5 {[%emt 0:01:20]} Rxc5 {[%emt 0:00:43]} 13. Be2 {[%emt 0:00:56]} Qb8 {[%emt 0:02:43]} 14. Kh1 {[%emt 0:02:10]} b5 {[%emt 0:00:34][%cal Bb7b5,Bb5b4][%mdl 32] Strongly threatening ...b4.} ({Much worse is} 14... Rh5 15. f4 $11) 15. Qb3 {[%emt 0:04:05] White does not recover from this.} (15. b4 $15 Rf5 16. f4) 15... Rh5 $19 {[%emt 0:03:18][%csl Gh5][%cal Rb8h2]} 16. f4 {[%emt 0:00:08] [#]} Qa8+ $1 {[%emt 0:00:05]} 17. Kg1 {[%emt 0:00:54]} Rh6 {[%emt 0:00:02] ( -> ...Rg6+)} 18. f3 {[%emt 0:00:21]} Rg6+ {[%emt 0:03:12]} 19. Kf2 $2 {[%emt 0:08:33]} (19. Kh1 {was the only defense.} Ng4 20. Rf1) 19... b4 {[%emt 0:00:25]} 20. Nb5 {[%emt 0:00:37]} (20. Rg1 $142 bxc3 21. Bxc3) 20... Nc5 {[%emt 0:00:39]} ({Weaker is} 20... Nd5 21. Rg1 $17) 21. Qc4 {[%emt 0:04:37] [#] Inhibits Nfe4+.} Nce4+ $1 {[%emt 0:01:04][%mdl 512]} 22. fxe4 {[%emt 0:01:09]} (22. Ke1 Rg1+) 22... Nxe4+ {[%emt 0:00:04]} 23. Ke1 {[%emt 0:00:10]} Bh4+ {[%emt 0:00:07] Weighted Error Value: White=1.33/Black=0.02 (flawless)} 0-1